[Event "Early-Titled-Tuesday-Blitz-July-09-2024"]
[Site "Chess.com"]
[Date "2024.07.09"]
[Round "2"]
[White "Ati1517"]
[Black "vedantgoswami"]
[Result "1-0"]
[WhiteElo "2073"]
[BlackElo "2408"]
[TimeControl "180+1"]
[EndTime "8:16:41 PDT"]
[Termination "Ati1517 won by resignation"]

1. e4 {[%clk 0:03:00.9]} 1... Nc6 {[%clk 0:02:53.3]} 2. d4 {[%clk 0:03:00]} 2...
d5 {[%clk 0:02:51.2]} 3. Nc3 {[%clk 0:02:55.3]} 3... dxe4 {[%clk 0:02:47.7]} 4.
d5 {[%clk 0:02:53.9]} 4... Ne5 {[%clk 0:02:43.5]} 5. Qd4 {[%clk 0:02:53.4]} 5...
Ng6 {[%clk 0:02:38.8]} 6. Bb5+ {[%clk 0:02:48.2]} 6... Bd7 {[%clk 0:02:37.9]} 7.
Bc4 {[%clk 0:02:43.2]} 7... Nf6 {[%clk 0:02:34.5]} 8. Bg5 {[%clk 0:02:40.3]}
8... c5 {[%clk 0:02:30.2]} 9. Qxc5 {[%clk 0:02:18.3]} 9... Rc8 {[%clk
0:02:29.2]} 10. Qd4 {[%clk 0:02:16.5]} 10... h6 {[%clk 0:02:20.3]} 11. Bxf6
{[%clk 0:02:15.9]} 11... exf6 {[%clk 0:02:19.4]} 12. d6 {[%clk 0:02:03.2]} 12...
Ne5 {[%clk 0:02:14.1]} 13. Bb3 {[%clk 0:02:00.4]} 13... Qb6 {[%clk 0:02:10.7]}
14. Qxb6 {[%clk 0:01:47.1]} 14... axb6 {[%clk 0:02:09.2]} 15. O-O-O {[%clk
0:01:47.5]} 15... f5 {[%clk 0:02:03.6]} 16. Nge2 {[%clk 0:01:39.7]} 16... Rc6
{[%clk 0:02:02.5]} 17. Nb5 {[%clk 0:01:33.3]} 17... Rc5 {[%clk 0:01:57.4]} 18.
Nc7+ {[%clk 0:01:31.6]} 18... Kd8 {[%clk 0:01:57.9]} 19. Rd5 {[%clk 0:00:21]}
19... Bxd6 {[%clk 0:01:52.7]} 20. Rxd6 {[%clk 0:00:17.9]} 20... Kxc7 {[%clk
0:01:52.5]} 21. Rd4 {[%clk 0:00:18.1]} 21... Be6 {[%clk 0:01:45.9]} 22. Bxe6
{[%clk 0:00:17.6]} 22... fxe6 {[%clk 0:01:46]} 23. Nf4 {[%clk 0:00:18.5]} 23...
Re8 {[%clk 0:01:42.9]} 24. Rhd1 {[%clk 0:00:18.7]} 24... Re7 {[%clk 0:01:42]}
25. Rd6 {[%clk 0:00:18.1]} 25... Ng4 {[%clk 0:01:38.6]} 26. Nxe6+ {[%clk
0:00:17.6]} 26... Rxe6 {[%clk 0:01:36.5]} 27. Rxe6 {[%clk 0:00:15.6]} 27... Nxf2
{[%clk 0:01:36.8]} 28. Rf1 {[%clk 0:00:15.7]} 28... Nd3+ {[%clk 0:01:28.9]} 29.
Kb1 {[%clk 0:00:15.5]} 29... Nb4 {[%clk 0:01:27.7]} 30. Re7+ {[%clk 0:00:13]}
30... Kc6 {[%clk 0:01:27.1]} 31. Rxg7 {[%clk 0:00:13]} 31... Nxc2 {[%clk
0:01:26.6]} 32. Rc1 {[%clk 0:00:13.2]} 32... Nd4 {[%clk 0:01:23.7]} 33. Rg6+
{[%clk 0:00:13]} 33... Kd5 {[%clk 0:01:23]} 34. Rxb6 {[%clk 0:00:12.4]} 34... e3
{[%clk 0:01:23]} 35. Rxc5+ {[%clk 0:00:11.8]} 35... Kxc5 {[%clk 0:01:23]} 36.
Rxb7 {[%clk 0:00:11.5]} 36... Kd5 {[%clk 0:01:21.3]} 37. Re7 {[%clk 0:00:11.8]}
37... e2 {[%clk 0:01:14.9]} 38. Kc1 {[%clk 0:00:12.2]} 38... f4 {[%clk
0:01:10.4]} 39. Kd2 {[%clk 0:00:11.2]} 39... Kd6 {[%clk 0:01:05.3]} 40. Re8
{[%clk 0:00:10.5]} 40... Kd7 {[%clk 0:01:05]} 41. Rxe2 {[%clk 0:00:10.5]} 41...
Nxe2 {[%clk 0:01:04]} 42. Kxe2 {[%clk 0:00:11.4]} 1-0

[Event "Early-Titled-Tuesday-Blitz-July-09-2024"]
[Site "Chess.com"]
[Date "2024.07.09"]
[Round "2"]
[White "annasargsyan_m"]
[Black "Witty_Alien"]
[Result "1-0"]
[WhiteElo "2645"]
[BlackElo "2395"]
[TimeControl "180+1"]
[EndTime "8:16:42 PDT"]
[Termination "annasargsyan_m won on time"]

1. d4 {[%clk 0:02:57.9]} 1... e5 {[%clk 0:02:59.5]} 2. dxe5 {[%clk 0:02:57.6]}
2... d6 {[%clk 0:02:59.5]} 3. exd6 {[%clk 0:02:57.3]} 3... Bxd6 {[%clk
0:02:58.7]} 4. Nf3 {[%clk 0:02:57.8]} 4... Nf6 {[%clk 0:02:59.2]} 5. Nc3 {[%clk
0:02:58.3]} 5... Nc6 {[%clk 0:02:58.7]} 6. Bg5 {[%clk 0:02:58.8]} 6... Bg4
{[%clk 0:02:58.4]} 7. e3 {[%clk 0:02:59.1]} 7... Qd7 {[%clk 0:02:58.8]} 8. Be2
{[%clk 0:02:59]} 8... O-O-O {[%clk 0:02:58.5]} 9. Bxf6 {[%clk 0:02:59.6]} 9...
gxf6 {[%clk 0:02:58.7]} 10. Qd5 {[%clk 0:03:00]} 10... Nb4 {[%clk 0:02:54.3]}
11. Qd2 {[%clk 0:02:59.5]} 11... Bf5 {[%clk 0:02:40.4]} 12. Nd4 {[%clk
0:02:36.4]} 12... Be5 {[%clk 0:01:59.9]} 13. O-O-O {[%clk 0:01:42.1]} 13... Bxd4
{[%clk 0:01:51.2]} 14. Qxd4 {[%clk 0:01:43]} 14... Qxd4 {[%clk 0:01:47.5]} 15.
Rxd4 {[%clk 0:01:43.9]} 15... Rxd4 {[%clk 0:01:47.2]} 16. exd4 {[%clk
0:01:44.8]} 16... Nxc2 {[%clk 0:01:41.9]} 17. Rd1 {[%clk 0:01:34.4]} 17... Rd8
{[%clk 0:01:34.3]} 18. g4 {[%clk 0:01:22.2]} 18... Bg6 {[%clk 0:01:24.9]} 19. d5
{[%clk 0:01:21.1]} 19... c5 {[%clk 0:00:39.2]} 20. dxc6 {[%clk 0:01:11.8]} 20...
bxc6 {[%clk 0:00:39.4]} 21. f4 {[%clk 0:01:04.1]} 21... Ne3 {[%clk 0:00:07.8]}
22. Rxd8+ {[%clk 0:01:01.4]} 22... Kxd8 {[%clk 0:00:08.7]} 23. f5 {[%clk
0:01:01.8]} 23... Bxf5 {[%clk 0:00:05.7]} 24. gxf5 {[%clk 0:01:02.7]} 24... Nxf5
{[%clk 0:00:06.3]} 25. Bd3 {[%clk 0:00:56.3]} 25... Nd4 {[%clk 0:00:03.1]} 26.
Bxh7 {[%clk 0:00:57.2]} 26... f5 {[%clk 0:00:02.2]} 27. Kd2 {[%clk 0:00:54.3]}
27... Nf3+ {[%clk 0:00:01.8]} 28. Ke3 {[%clk 0:00:53.9]} 28... Nxh2 {[%clk
0:00:01]} 29. Bxf5 {[%clk 0:00:54.2]} 29... Ke7 {[%clk 0:00:01.4]} 30. Kf2
{[%clk 0:00:53.8]} 30... Kf6 {[%clk 0:00:02]} 31. Bh3 {[%clk 0:00:53.7]} 31...
Ke5 {[%clk 0:00:01.5]} 32. Kg2 {[%clk 0:00:54.2]} 32... Kd4 {[%clk 0:00:01.6]}
33. Kxh2 {[%clk 0:00:54]} 33... Kd3 {[%clk 0:00:01.2]} 34. Bf5+ {[%clk
0:00:53.3]} 34... Kd2 {[%clk 0:00:01.9]} 35. Na4 {[%clk 0:00:52.8]} 35... Kc1
{[%clk 0:00:01.2]} 36. Kg3 {[%clk 0:00:53.2]} 36... Kd2 {[%clk 0:00:01]} 37. Kf4
{[%clk 0:00:53.7]} 1-0

[Event "Early-Titled-Tuesday-Blitz-July-09-2024"]
[Site "Chess.com"]
[Date "2024.07.09"]
[Round "2"]
[White "Iball95"]
[Black "profedechess93"]
[Result "1-0"]
[WhiteElo "2924"]
[BlackElo "2623"]
[TimeControl "180+1"]
[EndTime "8:16:46 PDT"]
[Termination "Iball95 won by resignation"]

1. e4 {[%clk 0:03:00.9]} 1... e6 {[%clk 0:03:00.1]} 2. d4 {[%clk 0:03:00.7]}
2... d5 {[%clk 0:03:00.7]} 3. Nc3 {[%clk 0:03:01.1]} 3... Nf6 {[%clk 0:03:00.8]}
4. Bd3 {[%clk 0:03:00.8]} 4... c5 {[%clk 0:03:00.1]} 5. Nf3 {[%clk 0:03:01]}
5... c4 {[%clk 0:02:58.4]} 6. e5 {[%clk 0:03:00.7]} 6... cxd3 {[%clk 0:02:53]}
7. exf6 {[%clk 0:03:00.5]} 7... Qxf6 {[%clk 0:02:48.8]} 8. Qxd3 {[%clk
0:02:59.9]} 8... a6 {[%clk 0:02:44.2]} 9. O-O {[%clk 0:02:58.6]} 9... Bd6 {[%clk
0:02:41]} 10. Re1 {[%clk 0:02:38.8]} 10... O-O {[%clk 0:02:37.9]} 11. Bg5 {[%clk
0:02:24.4]} 11... Qg6 {[%clk 0:02:36.5]} 12. Qd2 {[%clk 0:02:24.8]} 12... Nc6
{[%clk 0:02:24.7]} 13. Re2 {[%clk 0:02:22.4]} 13... Bd7 {[%clk 0:01:48.6]} 14.
Bf4 {[%clk 0:02:20.4]} 14... Bb4 {[%clk 0:01:34.9]} 15. a3 {[%clk 0:02:20.4]}
15... Be7 {[%clk 0:01:34.6]} 16. Nd1 {[%clk 0:01:37.4]} 16... Rac8 {[%clk
0:01:28.8]} 17. Ne3 {[%clk 0:01:37.1]} 17... b6 {[%clk 0:01:21.5]} 18. Rae1
{[%clk 0:01:35.3]} 18... h6 {[%clk 0:01:11.6]} 19. c3 {[%clk 0:01:34.3]} 19...
f6 {[%clk 0:00:57.1]} 20. h3 {[%clk 0:01:32.5]} 20... Na5 {[%clk 0:00:56]} 21.
Nxd5 {[%clk 0:01:25.8]} 21... exd5 {[%clk 0:00:55.3]} 22. Rxe7 {[%clk
0:01:26.7]} 22... Bxh3 {[%clk 0:00:50.9]} 23. Nh4 {[%clk 0:01:13.5]} 23... Qg4
{[%clk 0:00:50.7]} 24. Bg3 {[%clk 0:01:13.4]} 24... Nc4 {[%clk 0:00:41.2]} 25.
Qc2 {[%clk 0:01:04.5]} 25... Bxg2 {[%clk 0:00:35.1]} 26. Nxg2 {[%clk 0:01:01.5]}
26... h5 {[%clk 0:00:34.9]} 27. Qe2 {[%clk 0:00:51.8]} 27... Qg5 {[%clk
0:00:18.9]} 28. Nf4 {[%clk 0:00:36]} 28... h4 {[%clk 0:00:18.8]} 29. Ne6 {[%clk
0:00:31.5]} 29... Qg6 {[%clk 0:00:15]} 30. Rxg7+ {[%clk 0:00:28.3]} 1-0

[Event "Early-Titled-Tuesday-Blitz-July-09-2024"]
[Site "Chess.com"]
[Date "2024.07.09"]
[Round "2"]
[White "Msb2"]
[Black "Goryachkina"]
[Result "1-0"]
[WhiteElo "3102"]
[BlackElo "2675"]
[TimeControl "180+1"]
[EndTime "8:16:47 PDT"]
[Termination "Msb2 won on time"]

1. d4 {[%clk 0:03:00.9]} 1... d5 {[%clk 0:02:58.9]} 2. c4 {[%clk 0:03:01.3]}
2... dxc4 {[%clk 0:02:58.3]} 3. e4 {[%clk 0:03:01]} 3... Nf6 {[%clk 0:02:55.4]}
4. e5 {[%clk 0:03:00.9]} 4... Nd5 {[%clk 0:02:54.7]} 5. Bxc4 {[%clk 0:03:01.4]}
5... e6 {[%clk 0:02:38.4]} 6. Nc3 {[%clk 0:03:01.1]} 6... Nb6 {[%clk 0:02:34.7]}
7. Bd3 {[%clk 0:02:59.9]} 7... Nc6 {[%clk 0:02:33]} 8. Nf3 {[%clk 0:03:00.4]}
8... Bd7 {[%clk 0:02:27.4]} 9. a3 {[%clk 0:03:00.1]} 9... Ne7 {[%clk 0:02:25.1]}
10. Bg5 {[%clk 0:02:59.5]} 10... Bc6 {[%clk 0:02:23.5]} 11. Rc1 {[%clk
0:02:59.8]} 11... h6 {[%clk 0:02:21.9]} 12. Bh4 {[%clk 0:02:59.9]} 12... Qd7
{[%clk 0:02:18.4]} 13. Ne4 {[%clk 0:02:58.9]} 13... Bxe4 {[%clk 0:02:17.3]} 14.
Bxe4 {[%clk 0:02:59.8]} 14... c6 {[%clk 0:02:17.2]} 15. O-O {[%clk 0:02:58.2]}
15... Ned5 {[%clk 0:02:03.6]} 16. Nd2 {[%clk 0:02:57.9]} 16... Be7 {[%clk
0:02:00.2]} 17. Bg3 {[%clk 0:02:53.9]} 17... Nc7 {[%clk 0:01:51.9]} 18. Nb3
{[%clk 0:02:48.9]} 18... a5 {[%clk 0:01:49.5]} 19. Bf3 {[%clk 0:02:48.9]} 19...
O-O {[%clk 0:01:40]} 20. Qd3 {[%clk 0:02:47.9]} 20... a4 {[%clk 0:01:38]} 21.
Na1 {[%clk 0:02:37.6]} 21... Rfd8 {[%clk 0:01:35.1]} 22. Nc2 {[%clk 0:02:37.9]}
22... Nb5 {[%clk 0:01:27.4]} 23. Rfd1 {[%clk 0:02:37.6]} 23... Nd5 {[%clk
0:01:22.6]} 24. Qe4 {[%clk 0:02:35.2]} 24... Bf8 {[%clk 0:00:58.8]} 25. Be2
{[%clk 0:02:34.7]} 25... Ne7 {[%clk 0:00:49.8]} 26. Bh4 {[%clk 0:02:29.9]} 26...
Rdc8 {[%clk 0:00:44.6]} 27. Bxe7 {[%clk 0:02:29.6]} 27... Qxe7 {[%clk
0:00:34.1]} 28. h4 {[%clk 0:02:29.6]} 28... f5 {[%clk 0:00:23.7]} 29. exf6
{[%clk 0:02:29.4]} 29... Qxf6 {[%clk 0:00:23.8]} 30. Bd3 {[%clk 0:02:25.9]}
30... Qf5 {[%clk 0:00:19.5]} 31. Qe2 {[%clk 0:02:22.7]} 31... Qf6 {[%clk
0:00:19.4]} 32. g3 {[%clk 0:02:13.7]} 32... Rd8 {[%clk 0:00:18.5]} 33. Bxb5
{[%clk 0:02:12.5]} 33... cxb5 {[%clk 0:00:18.5]} 34. Qxb5 {[%clk 0:02:13.4]}
34... Qf3 {[%clk 0:00:14]} 35. Qd3 {[%clk 0:02:08.8]} 35... Qxd3 {[%clk
0:00:13.6]} 36. Rxd3 {[%clk 0:02:09.7]} 36... Rd5 {[%clk 0:00:13]} 37. Ne3
{[%clk 0:02:09.7]} 37... Rb5 {[%clk 0:00:13.3]} 38. Rc2 {[%clk 0:02:09.5]} 38...
Rd8 {[%clk 0:00:13]} 39. Rdd2 {[%clk 0:02:05.8]} 39... g6 {[%clk 0:00:12.6]} 40.
Rc4 {[%clk 0:02:05.7]} 40... Ra5 {[%clk 0:00:11.5]} 41. Rc7 {[%clk 0:02:04.1]}
41... b5 {[%clk 0:00:10.4]} 42. d5 {[%clk 0:02:00.9]} 42... b4 {[%clk
0:00:09.3]} 43. axb4 {[%clk 0:01:52.7]} 43... Bxb4 {[%clk 0:00:07.9]} 44. Rd4
{[%clk 0:01:53.4]} 44... Bc5 {[%clk 0:00:06.8]} 45. Rg4 {[%clk 0:01:51.5]} 45...
g5 {[%clk 0:00:05]} 46. dxe6 {[%clk 0:01:43.7]} 46... Bxe3 {[%clk 0:00:04.6]}
47. fxe3 {[%clk 0:01:44.6]} 47... Re5 {[%clk 0:00:04.3]} 48. hxg5 {[%clk
0:01:44.8]} 48... hxg5 {[%clk 0:00:04.4]} 49. Kf2 {[%clk 0:01:38.6]} 49... Rf5+
{[%clk 0:00:01.8]} 50. Ke2 {[%clk 0:01:38.9]} 50... Re8 {[%clk 0:00:01.8]} 51.
e7 {[%clk 0:01:38.7]} 51... Kf7 {[%clk 0:00:01.6]} 52. Rxa4 {[%clk 0:01:38.5]}
52... Rb5 {[%clk 0:00:01.8]} 53. b4 {[%clk 0:01:38.5]} 53... Rd5 {[%clk
0:00:01.1]} 54. Ra5 {[%clk 0:01:37.7]} 54... Rd6 {[%clk 0:00:01.1]} 55. b5
{[%clk 0:01:37]} 1-0

[Event "Early-Titled-Tuesday-Blitz-July-09-2024"]
[Site "Chess.com"]
[Date "2024.07.09"]
[Round "2"]
[White "Andrei_Skvortsov"]
[Black "DanLowinger"]
[Result "1/2-1/2"]
[WhiteElo "2800"]
[BlackElo "2422"]
[TimeControl "180+1"]
[EndTime "8:16:47 PDT"]
[Termination "Game drawn by repetition"]

1. d4 {[%clk 0:03:00.9]} 1... Nf6 {[%clk 0:02:59.5]} 2. c4 {[%clk 0:02:59.9]}
2... g6 {[%clk 0:02:59]} 3. Nd2 {[%clk 0:02:58.6]} 3... Bg7 {[%clk 0:02:55.9]}
4. b4 {[%clk 0:02:57.2]} 4... O-O {[%clk 0:02:54.1]} 5. Bb2 {[%clk 0:02:54.1]}
5... d6 {[%clk 0:02:49.7]} 6. e4 {[%clk 0:02:53.3]} 6... e5 {[%clk 0:02:41.3]}
7. dxe5 {[%clk 0:02:52.9]} 7... Nfd7 {[%clk 0:02:32.2]} 8. Ngf3 {[%clk
0:02:49.4]} 8... Nc6 {[%clk 0:02:28.9]} 9. Qb3 {[%clk 0:02:39.5]} 9... Ndxe5
{[%clk 0:02:24.9]} 10. Nxe5 {[%clk 0:02:36.2]} 10... Nxe5 {[%clk 0:01:54.4]} 11.
f4 {[%clk 0:02:30.5]} 11... Nc6 {[%clk 0:01:46.1]} 12. Bxg7 {[%clk 0:02:29.8]}
12... Kxg7 {[%clk 0:01:47]} 13. O-O-O {[%clk 0:02:28.6]} 13... Qf6 {[%clk
0:01:44.8]} 14. b5 {[%clk 0:02:13.5]} 14... Nd4 {[%clk 0:01:31]} 15. Qe3 {[%clk
0:02:07.7]} 15... Ne6 {[%clk 0:01:26.2]} 16. e5 {[%clk 0:02:02.8]} 16... Qxf4
{[%clk 0:01:25.1]} 17. Qxf4 {[%clk 0:02:02.4]} 17... Nxf4 {[%clk 0:01:26]} 18.
exd6 {[%clk 0:02:02.6]} 18... cxd6 {[%clk 0:01:26.5]} 19. Nb3 {[%clk 0:01:59.9]}
19... Be6 {[%clk 0:01:21.8]} 20. g3 {[%clk 0:01:52.1]} 20... Nh5 {[%clk
0:01:13.9]} 21. Rxd6 {[%clk 0:01:52.3]} 21... Rfc8 {[%clk 0:01:12.7]} 22. Rd4
{[%clk 0:01:50.3]} 22... a6 {[%clk 0:01:04.9]} 23. Kb2 {[%clk 0:01:50.7]} 23...
Rc7 {[%clk 0:00:50.9]} 24. Be2 {[%clk 0:01:48.5]} 24... Nf6 {[%clk 0:00:49.6]}
25. Rc1 {[%clk 0:01:31]} 25... Rac8 {[%clk 0:00:49.3]} 26. a4 {[%clk 0:01:24.8]}
26... Nd7 {[%clk 0:00:48.5]} 27. a5 {[%clk 0:01:20]} 27... Ne5 {[%clk
0:00:48.5]} 28. c5 {[%clk 0:01:13.4]} 28... Bxb3 {[%clk 0:00:47.4]} 29. Kxb3
{[%clk 0:01:09.9]} 29... Rxc5 {[%clk 0:00:40.7]} 30. Rxc5 {[%clk 0:01:10.1]}
30... Rxc5 {[%clk 0:00:41.4]} 31. Kb4 {[%clk 0:01:06.5]} 31... Rc2 {[%clk
0:00:38.3]} 32. Re4 {[%clk 0:01:06.8]} 32... Nd7 {[%clk 0:00:24.6]} 33. bxa6
{[%clk 0:01:05.8]} 33... bxa6 {[%clk 0:00:24.9]} 34. Re7 {[%clk 0:01:05.9]}
34... Kf6 {[%clk 0:00:18.1]} 35. Rxd7 {[%clk 0:01:03.8]} 35... Rxe2 {[%clk
0:00:17.9]} 36. Rd6+ {[%clk 0:01:04.1]} 36... Re6 {[%clk 0:00:16.5]} 37. Kc5
{[%clk 0:00:59.7]} 37... Rxd6 {[%clk 0:00:12.5]} 38. Kxd6 {[%clk 0:01:00.6]}
38... h5 {[%clk 0:00:12.2]} 39. Kc6 {[%clk 0:01:00.4]} 39... Ke6 {[%clk
0:00:12.8]} 40. Kb6 {[%clk 0:01:00.8]} 40... Kd6 {[%clk 0:00:13.4]} 41. Kxa6
{[%clk 0:01:01]} 41... Kc6 {[%clk 0:00:14.1]} 42. Ka7 {[%clk 0:01:00.2]} 42...
Kc7 {[%clk 0:00:14.4]} 43. Ka6 {[%clk 0:00:58.9]} 43... Kc6 {[%clk 0:00:14.7]}
44. Ka7 {[%clk 0:00:52.7]} 44... Kc7 {[%clk 0:00:15]} 45. Ka6 {[%clk 0:00:49.1]}
45... Kc6 {[%clk 0:00:15.2]} 1/2-1/2

[Event "Early-Titled-Tuesday-Blitz-July-09-2024"]
[Site "Chess.com"]
[Date "2024.07.09"]
[Round "2"]
[White "Austen48"]
[Black "JoJoZP"]
[Result "0-1"]
[WhiteElo "2295"]
[BlackElo "2504"]
[TimeControl "180+1"]
[EndTime "8:16:48 PDT"]
[Termination "JoJoZP won by resignation"]

1. d4 {[%clk 0:02:59]} 1... Nf6 {[%clk 0:02:59]} 2. c4 {[%clk 0:02:58.4]} 2...
g6 {[%clk 0:02:57.8]} 3. Nc3 {[%clk 0:02:57.9]} 3... d5 {[%clk 0:02:57.6]} 4.
Nf3 {[%clk 0:02:56.4]} 4... Bg7 {[%clk 0:02:57.6]} 5. Qb3 {[%clk 0:02:55.7]}
5... dxc4 {[%clk 0:02:57.4]} 6. Qxc4 {[%clk 0:02:56.4]} 6... O-O {[%clk
0:02:58.2]} 7. e4 {[%clk 0:02:55.8]} 7... a6 {[%clk 0:02:58.7]} 8. e5 {[%clk
0:02:50.9]} 8... b5 {[%clk 0:02:57.1]} 9. Qb3 {[%clk 0:02:51.5]} 9... Nfd7
{[%clk 0:02:48.5]} 10. Be3 {[%clk 0:02:27.6]} 10... c5 {[%clk 0:02:42.8]} 11.
Qd5 {[%clk 0:02:00.8]} 11... Ra7 {[%clk 0:02:36.1]} 12. dxc5 {[%clk 0:01:58.5]}
12... Bb7 {[%clk 0:02:35.7]} 13. Qd2 {[%clk 0:01:31.9]} 13... Bxf3 {[%clk
0:02:31.7]} 14. gxf3 {[%clk 0:01:26.4]} 14... Nxe5 {[%clk 0:02:31.3]} 15. Be2
{[%clk 0:01:22.9]} 15... Qxd2+ {[%clk 0:02:27.3]} 16. Bxd2 {[%clk 0:01:22.5]}
16... Nbc6 {[%clk 0:02:24.9]} 17. Be3 {[%clk 0:01:14.1]} 17... Rd7 {[%clk
0:02:21.3]} 18. O-O {[%clk 0:01:02.7]} 18... Nc4 {[%clk 0:02:12.7]} 19. Bxc4
{[%clk 0:00:59.8]} 19... bxc4 {[%clk 0:02:13.6]} 20. Rad1 {[%clk 0:00:55.8]}
20... Rfd8 {[%clk 0:02:11.5]} 21. Rxd7 {[%clk 0:00:52.1]} 21... Rxd7 {[%clk
0:02:12.4]} 22. Rd1 {[%clk 0:00:50.4]} 22... Rb7 {[%clk 0:01:48.3]} 23. Rd2
{[%clk 0:00:44.5]} 23... Bxc3 {[%clk 0:01:35.6]} 24. bxc3 {[%clk 0:00:43.5]}
24... f6 {[%clk 0:01:36.2]} 25. Kg2 {[%clk 0:00:39.2]} 25... Kf7 {[%clk
0:01:35.7]} 26. a4 {[%clk 0:00:33.8]} 26... Ke6 {[%clk 0:01:28.3]} 27. Bd4
{[%clk 0:00:20.6]} 27... Rd7 {[%clk 0:01:23.6]} 28. Re2+ {[%clk 0:00:20.6]}
28... Kf7 {[%clk 0:01:22.3]} 29. Be3 {[%clk 0:00:17.2]} 29... Rd3 {[%clk
0:01:20.6]} 30. Rc2 {[%clk 0:00:16.6]} 30... Ke6 {[%clk 0:01:18.5]} 31. Rb2
{[%clk 0:00:16]} 31... Rxc3 {[%clk 0:01:13.9]} 32. Rb6 {[%clk 0:00:16.6]} 32...
Kd5 {[%clk 0:01:11.8]} 33. Rxa6 {[%clk 0:00:17.2]} 33... Ra3 {[%clk 0:01:07.8]}
34. Ra8 {[%clk 0:00:14]} 34... c3 {[%clk 0:01:06.2]} 35. f4 {[%clk 0:00:11.9]}
35... c2 {[%clk 0:01:05]} 36. Bc1 {[%clk 0:00:12.2]} 36... Ra1 {[%clk
0:01:04.8]} 37. Bb2 {[%clk 0:00:11.3]} 37... c1=Q {[%clk 0:01:04.8]} 38. Bxc1
{[%clk 0:00:11.3]} 38... Rxc1 {[%clk 0:01:05.7]} 39. a5 {[%clk 0:00:11.2]} 39...
Ra1 {[%clk 0:01:05.8]} 40. a6 {[%clk 0:00:11.2]} 40... Kxc5 {[%clk 0:01:06.1]}
41. Kf3 {[%clk 0:00:10]} 41... f5 {[%clk 0:01:05]} 42. Ke3 {[%clk 0:00:09.8]}
42... Ra3+ {[%clk 0:01:04.2]} 43. Kd2 {[%clk 0:00:09]} 43... Kd4 {[%clk
0:01:02.2]} 44. Rc8 {[%clk 0:00:07.7]} 44... Ra2+ {[%clk 0:01:01.3]} 0-1

[Event "Early-Titled-Tuesday-Blitz-July-09-2024"]
[Site "Chess.com"]
[Date "2024.07.09"]
[Round "2"]
[White "GM-2024-GM"]
[Black "EsmeraldasAnderson03"]
[Result "0-1"]
[WhiteElo "2336"]
[BlackElo "2536"]
[TimeControl "180+1"]
[EndTime "8:16:54 PDT"]
[Termination "EsmeraldasAnderson03 won on time"]

1. e4 {[%clk 0:02:58.3]} 1... c5 {[%clk 0:02:59]} 2. Nf3 {[%clk 0:02:57.9]} 2...
d6 {[%clk 0:02:59.5]} 3. d4 {[%clk 0:02:58.3]} 3... cxd4 {[%clk 0:03:00.3]} 4.
Nxd4 {[%clk 0:02:58.3]} 4... Nf6 {[%clk 0:03:00.9]} 5. Nc3 {[%clk 0:02:58]} 5...
a6 {[%clk 0:03:01.5]} 6. Bg5 {[%clk 0:02:57.1]} 6... e6 {[%clk 0:03:00.2]} 7.
Qe2 {[%clk 0:02:54.4]} 7... Be7 {[%clk 0:02:59.4]} 8. f4 {[%clk 0:02:53.9]} 8...
Qc7 {[%clk 0:02:56.7]} 9. O-O-O {[%clk 0:02:53.7]} 9... b5 {[%clk 0:02:57.1]}
10. a3 {[%clk 0:02:52.6]} 10... Nbd7 {[%clk 0:02:55]} 11. g4 {[%clk 0:02:43.8]}
11... Rb8 {[%clk 0:02:52.2]} 12. Bg2 {[%clk 0:02:38.9]} 12... b4 {[%clk
0:02:51.3]} 13. axb4 {[%clk 0:02:29.8]} 13... Rxb4 {[%clk 0:02:50.5]} 14. e5
{[%clk 0:02:30.2]} 14... dxe5 {[%clk 0:02:28.8]} 15. Nc6 {[%clk 0:02:29.7]}
15... Rxf4 {[%clk 0:02:27.1]} 16. Bxf4 {[%clk 0:01:58.6]} 16... exf4 {[%clk
0:02:28]} 17. Nxe7 {[%clk 0:01:58.7]} 17... Kxe7 {[%clk 0:02:24.6]} 18. g5
{[%clk 0:01:58.9]} 18... Qa5 {[%clk 0:02:14.9]} 19. gxf6+ {[%clk 0:01:56.4]}
19... Nxf6 {[%clk 0:02:15.8]} 20. Kb1 {[%clk 0:01:19.9]} 20... Bd7 {[%clk
0:02:14.4]} 21. Nd5+ {[%clk 0:01:05.1]} 21... Nxd5 {[%clk 0:02:10.6]} 22. Rxd5
{[%clk 0:01:06]} 22... Bb5 {[%clk 0:02:03.8]} 23. Qd2 {[%clk 0:01:01.3]} 23...
Qb6 {[%clk 0:01:58.9]} 24. Re1 {[%clk 0:00:39.8]} 24... Rb8 {[%clk 0:01:58.4]}
25. Qxf4 {[%clk 0:00:37.5]} 25... Bc4 {[%clk 0:01:48.5]} 26. Qd4 {[%clk
0:00:16.1]} 26... Bxd5 {[%clk 0:01:43.9]} 27. Qxb6 {[%clk 0:00:15.7]} 27... Rxb6
{[%clk 0:01:44.8]} 28. Bxd5 {[%clk 0:00:16.1]} 28... Rd6 {[%clk 0:01:44.4]} 29.
Bc4 {[%clk 0:00:12]} 29... g5 {[%clk 0:01:44.7]} 30. Kc1 {[%clk 0:00:11.1]}
30... f5 {[%clk 0:01:44.5]} 31. Rd1 {[%clk 0:00:08.6]} 31... Rc6 {[%clk
0:01:45]} 32. b3 {[%clk 0:00:07]} 32... h5 {[%clk 0:01:44.5]} 33. Kd2 {[%clk
0:00:07.4]} 33... Kf6 {[%clk 0:01:43.3]} 34. Ke2 {[%clk 0:00:07]} 34... e5
{[%clk 0:01:39.4]} 35. Rd7 {[%clk 0:00:06.7]} 35... e4 {[%clk 0:01:39.1]} 36.
Rf7+ {[%clk 0:00:06.6]} 36... Ke5 {[%clk 0:01:39.8]} 37. Re7+ {[%clk 0:00:05.1]}
37... Kf4 {[%clk 0:01:39.7]} 38. Re6 {[%clk 0:00:05.6]} 38... Rc8 {[%clk
0:01:31.2]} 39. Rxa6 {[%clk 0:00:02]} 39... h4 {[%clk 0:01:31.6]} 40. Ra5 {[%clk
0:00:02.1]} 40... Re8 {[%clk 0:01:30.7]} 41. b4 {[%clk 0:00:01.8]} 41... g4
{[%clk 0:01:30.6]} 42. b5 {[%clk 0:00:02]} 42... g3 {[%clk 0:01:28.8]} 43. hxg3+
{[%clk 0:00:02.5]} 43... Kxg3 {[%clk 0:01:29.7]} 44. b6 {[%clk 0:00:02.4]} 44...
f4 {[%clk 0:01:30.2]} 45. Bd5 {[%clk 0:00:01]} 45... f3+ {[%clk 0:01:29.2]} 46.
Ke3 {[%clk 0:00:01.4]} 46... f2 {[%clk 0:01:28.7]} 47. Ra1 {[%clk 0:00:01.8]}
47... Rf8 {[%clk 0:01:25.6]} 48. Ke2 {[%clk 0:00:02.1]} 48... e3 {[%clk
0:01:18]} 49. b7 {[%clk 0:00:01.7]} 49... Rd8 {[%clk 0:01:18.2]} 50. c4 {[%clk
0:00:01.2]} 50... h3 {[%clk 0:01:18.9]} 51. Rh1 {[%clk 0:00:01.2]} 51... h2
{[%clk 0:01:19]} 0-1